fUSD/lending_fUSD_20240802
["ID","MTS","AMOUNT","RATE_DAILY","PERIOD"]
[333906907,1722622239201,-12810.53942274,0.0001254,2]
[333906908,1722622239211,-400.0,0.00012665,2]
[333906909,1722622239220,-167.27,0.00012831,2]
[333906910,1722622239229,-193.51,0.0001293,2]
[333906911,1722622239240,-181.62,0.0001298,2]
[333906912,1722622239249,-891.68121634,0.00013132,2]
[333906913,1722622239259,-309.72349143,0.00013167,2]
[333906914,1722622239268,-1000.0,0.00013181,2]
[333906915,1722622239277,-250.0,0.00013196,2]
[333906916,1722622239286,-1038.67104206,0.00013199,2]
[333906917,1722622239295,-4865.26923921,0.00013199,2]
[333906918,1722622239305,-500.0,0.00013207,3]
[333906919,1722622239314,-200.88294081,0.00013212,2]
[333906920,1722622239323,-348.15261591,0.00013212,2]
[333906921,1722622239332,-155.50533946,0.00013212,2]
[333906922,1722622239341,-215.65287238,0.00013212,2]
[333906923,1722622239350,-5448.41060423,0.00013283,2]
[333906924,1722622239360,-2500.4353,0.00013378,2]
[333906925,1722622239369,-266.18,0.00013394,2]
[333906926,1722622239379,-4790.79929498,0.0001351,2]
[333906927,1722622239388,-846.01,0.00013572,2]
[333906928,1722622239397,-309.72349143,0.00013956,2]
[333906929,1722622239406,-497.76,0.00013973,2]
[333906930,1722622239415,-150.41,0.00013973,2]
[333906931,1722622239425,-600.0,0.00014,2]
[333906932,1722622239435,-390.382289,0.00014247,2]
[333906933,1722622239444,-1000.0,0.00014646,2]
[333906934,1722622239454,-150.0,0.00014668,2]
[333906935,1722622239465,-309.72349143,0.00014744,2]
[333906936,1722622239474,-1505.10451575,0.00014762,2]
[333906937,1722622239484,-150.0,0.0001477,2]
[333906938,1722622239493,-254.95149509,0.00014776,2]
[333906939,1722622239502,-150.0,0.0001479,2]
[333906940,1722622239512,-171.97,0.0001484,2]
[333906941,1722622239521,-150.0,0.00014859,2]
[333906942,1722622239531,-166.23762541,0.00014899,2]
[333906943,1722622239545,-150.0,0.00014904,2]
[333906944,1722622239554,-150.0,0.00014916,2]
[333906945,1722622239563,-150.0,0.00014949,2]
[333906946,1722622239573,-167.27,0.0001497,2]
[333906947,1722622239582,-1500.0,0.00015042,2]
[333906948,1722622239591,-150.0,0.00015043,2]
[333906949,1722622239601,-160.36,0.00015054,2]
[333906950,1722622239610,-160.36,0.00015062,2]
[333906951,1722622239622,-390.382289,0.00015068,2]
[333906953,1722622239633,-266.18,0.00015069,2]
[333906955,1722622239642,-160.36,0.0001507,2]
[333906957,1722622239651,-160.36,0.00015079,2]
[333906958,1722622239660,-160.36,0.00015087,2]
[333906959,1722622239672,-150.0,0.00015092,2]
[333906960,1722622239681,-160.36,0.00015095,2]
[333906961,1722622239691,-160.36,0.00015104,2]
[333906962,1722622239701,-160.36,0.00015112,2]
[333906963,1722622239711,-160.36,0.0001512,2]
[333906964,1722622239720,-160.36,0.00015129,2]
[333906965,1722622239730,-150.0,0.00015145,2]
[333906966,1722622239739,-150.0,0.00015192,2]
[333906967,1722622239749,-717.0,0.000152,2]
[333906968,1722622239758,-1500.0,0.00015224,2]
[333906969,1722622239767,-150.0,0.00015253,2]
[333906970,1722622239776,-1500.0,0.00015302,2]
[333906971,1722622239786,-150.0,0.00015407,2]
[333906972,1722622239795,-150.0,0.00015445,2]
[333906973,1722622239805,-309.72349143,0.00015533,2]
[333906974,1722622239815,-150.0,0.00015541,2]
[333906975,1722622239824,-150.0,0.00015551,2]
[333906976,1722622239833,-1500.0,0.00015558,2]
[333906977,1722622239842,-150.0,0.00015598,2]
[333906978,1722622239852,-1500.0,0.00015619,2]
[333906980,1722622239862,-150.0,0.0001564,2]
[333906983,1722622239871,-150.0,0.00015654,2]
[333906984,1722622239881,-150.0,0.00015703,2]
[333906985,1722622239890,-150.0,0.00015743,2]
[333906986,1722622239899,-150.0,0.00015773,2]
[333906987,1722622239908,-1500.0,0.00015779,2]
[333906988,1722622239917,-150.0,0.00015828,2]
[333906989,1722622239927,-846.01,0.00015835,2]
[333906990,1722622239936,-150.0,0.00015855,2]
[333906991,1722622239946,-390.382289,0.0001589,2]
[333906992,1722622239955,-529.74,0.0001589,2]
[333906993,1722622239964,-2423.0,0.000159,2]
[333906994,1722622239974,-155.0,0.00015912,2]
[333906995,1722622239983,-150.0,0.00015935,2]
[333906996,1722622239993,-150.0,0.00015956,2]
[333906997,1722622240002,-150.0,0.00015978,2]
[333906998,1722622240012,-650.0,0.00016,2]
[333906999,1722622240022,-150.0,0.00016107,2]
[333907000,1722622240033,-1000.0,0.00016111,2]
[333907001,1722622240042,-150.0,0.00016113,2]
[333907002,1722622240051,-1500.0,0.00016124,2]
[333907003,1722622240060,-150.0,0.00016125,2]
[333907004,1722622240074,-150.0,0.0001613,2]
[333907005,1722622240083,-150.0,0.000162,2]
[333907006,1722622240093,-150.0,0.00016232,2]
[333907007,1722622240102,-309.72349143,0.00016322,2]
[333907008,1722622240112,-150.0,0.00016343,2]
[333907009,1722622240122,-1500.0,0.00016353,2]
[333907010,1722622240131,-150.0,0.00016368,2]
[333907011,1722622240140,-150.0,0.00016372,2]
[333907012,1722622240150,-3754.26581262,0.00016429,2]
[333907013,1722622240160,-200.36575078,0.00016436,2]
[333907014,1722622240169,-44838.98362507,0.00016438,7]
[333907015,1722622240183,-585.14741553,0.00016438,7]
[333907016,1722622240194,-1197.7017767,0.00016438,7]
[333907017,1722622240206,-9433.38053126,0.00016438,7]
[333907018,1722622240217,-9987.90608371,0.00016438,7]
[333907044,1722622240698,-2103.68042,0.0001089,2]
[333907046,1722622240707,-3678.61056957,0.00010899,2]
[333907048,1722622240719,-5542.75858707,0.00010899,2]
[333907050,1722622240728,-961.73385399,0.00013212,2]
[333907052,1722622240738,-2103.68043,0.0001339,2]
[333907054,1722622240747,-2103.68043,0.0001589,2]
[333907056,1722622240759,-1606.07770669,0.00016438,7]
[333907058,1722622240770,-855.8251,0.00016438,7]
[333907061,1722622240794,-336.23325,0.00016438,7]
[333907063,1722622240806,-400.07483383,0.00016438,7]
[333907064,1722622240817,-745.83403878,0.00016438,7]
[333907065,1722622240829,-17100.0,0.00016438,7]
[333907066,1722622240840,-558.68054259,0.00016438,7]
[333907067,1722622241123,-0.37713265,0.00016438,7]
[333907068,1722622241134,-460.56973873,0.00016438,7]
[333907069,1722622241145,-992.57555336,0.00016438,7]
[333907070,1722622241158,-526.04862823,0.00016438,7]
[333907071,1722622241178,-2924.53832,0.00016438,7]
[333907072,1722622241190,-359.44640036,0.00016438,7]
[333907073,1722622241201,-451.09100226,0.00016438,7]
[333907074,1722622241212,-750.72000001,0.00016438,7]
[333907075,1722622241223,-1032.75,0.00016438,7]
[333907076,1722622241234,-496.786,0.00016438,7]
[333907077,1722622241246,-2653.25137297,0.00016438,7]
[333907078,1722622241274,-1626.45291562,0.00016438,7]
[333907079,1722622241285,-492.55741441,0.00016438,7]
[333907080,1722622241326,-49871.13696804,0.00016438,7]
[333907081,1722622241338,-489.87320722,0.00016438,7]
[333907082,1722622241351,-971.108,0.00016438,7]
[333907083,1722622241363,-636.42,0.00016438,7]
[333907100,1722622242902,-236.3,0.0001089,2]
[333907101,1722622242912,-236.3,0.0001089,2]
[333907102,1722622242922,-224.63822464,0.0001089,2]
[333907103,1722622242945,-11.66177536,0.0001089,2]
[333907104,1722622242955,-236.3,0.0001089,2]
[333907105,1722622242964,-5657.45416513,0.00011589,2]
[333907106,1722622242975,-3265.01060924,0.00011589,2]
[333907116,1722622244118,-298.90438226,0.00011589,2]
[333907117,1722622244128,-784.0129671,0.0001331,2]
[333907118,1722622244139,-305.67881732,0.0001331,2]
[333907119,1722622244150,-701.78153052,0.0001331,2]
[333907120,1722622244162,-708.96198506,0.0001331,2]
[333907121,1722622244172,-1221.71301494,0.00016438,7]
[333907122,1722622244183,-12000.22715243,0.00016438,7]
[333907123,1722622244195,-3021.53377522,0.00016438,7]
[333907124,1722622244206,-6000.0,0.00016438,7]
[333907125,1722622244232,-236.3,0.0001089,2]
[333907126,1722622244242,-202.0747971,0.00016438,7]
[333907127,1722622244263,-748.724,0.00016438,7]
[333907128,1722622244294,-354.726,0.00016438,7]
[333907129,1722622244305,-6460.60415619,0.00016438,7]
[333907130,1722622244315,-1254.0,0.00016438,2]
[333907131,1722622244324,-500.0,0.00016438,2]
[333907132,1722622244334,-500.0,0.00016438,2]
[333907133,1722622244344,-500.0,0.00016438,2]
[333907134,1722622244353,-2077.2,0.00016438,2]
[333907135,1722622244363,-500.0,0.00016438,2]
[333907136,1722622244373,-94.67969191,0.00016438,2]
[333907137,1722622244386,-527.13030809,0.00016438,2]
[333907138,1722622244395,-1373.03,0.00016438,2]
[333907139,1722622244405,-952.85,0.00016438,2]
[333907140,1722622244414,-500.0,0.00016438,2]
[333907141,1722622244424,-500.0,0.00016438,2]
[333907142,1722622244434,-889.32,0.00016438,2]
[333907143,1722622244444,-500.0,0.00016438,2]
[333907144,1722622244454,-534.08,0.00016438,2]
[333907145,1722622244464,-500.0,0.00016438,2]
[333907146,1722622244473,-552.02,0.00016438,2]
[333907147,1722622244483,-500.0,0.00016438,2]
[333907148,1722622244493,-500.0,0.00016438,2]
[333907149,1722622244502,-500.0,0.00016438,2]
[333907150,1722622244512,-204.79026891,0.00016438,2]
[333907151,1722622244523,-850.28,0.00016438,2]
[333907152,1722622244537,-1609.16878484,0.00016438,2]
[333907153,1722622244551,-334.05121516,0.00016438,2]
[333907154,1722622244561,-187.26042128,0.00016438,2]
[333907157,1722622246200,-236.3,0.0001089,2]
[333907158,1722622246210,-236.3,0.0001089,2]
[333907159,1722622246220,-236.3,0.0001089,2]
[333907160,1722622246229,-203.44615092,0.0001089,2]
[333907161,1722622246312,-32.85384908,0.0001089,2]
[333907162,1722622246322,-236.3,0.0001089,2]
[333907163,1722622246331,-236.3,0.0001089,2]
[333907164,1722622246343,-236.3,0.0001089,2]
[333907165,1722622246352,-236.3,0.0001089,2]
[333907166,1722622246362,-236.3,0.0001089,2]
[333907167,1722622246371,-236.3,0.0001089,2]
[333907168,1722622246667,-236.3,0.0001089,2]
[333907169,1722622246677,-236.3,0.0001089,2]
[333907170,1722622246687,-1771.30531255,0.00011089,2]
[333907171,1722622246699,-3946.5,0.00011089,2]
[333907172,1722622246711,-2596.18003215,0.00011089,2]
[333907173,1722622246722,-648.65957872,0.00016438,2]
[333907174,1722622246731,-500.0,0.00016438,2]
[333907175,1722622246741,-500.0,0.00016438,2]
[333907177,1722622246751,-1154.99,0.00016438,2]
[333907178,1722622246769,-500.0,0.00016438,2]
[333907179,1722622246778,-500.0,0.00016438,2]
[333907180,1722622246788,-865.87038913,0.00016438,2]
[333907181,1722622246800,-1157.66961087,0.00016438,2]
[333907182,1722622246810,-1126.52,0.00016438,2]
[333907183,1722622246820,-500.0,0.00016438,2]
[333907184,1722622246830,-500.0,0.00016438,2]
[333907185,1722622246840,-500.0,0.00016438,2]
[333907186,1722622246849,-500.0,0.00016438,2]
[333907187,1722622246859,-500.0,0.00016438,2]
[333907188,1722622246868,-1061.72,0.00016438,2]
[333907189,1722622246878,-1022.64,0.00016438,2]
[333907190,1722622246888,-902.12,0.00016438,2]
[333907191,1722622246897,-556.85,0.00016438,2]
[333907192,1722622246907,-500.0,0.00016438,2]
[333907193,1722622246917,-500.84,0.00016438,2]
[333907194,1722622246927,-701.95,0.00016438,2]
[333907195,1722622246936,-500.0,0.00016438,2]
[333907196,1722622246945,-500.0,0.00016438,2]
[333907197,1722622246955,-738.29,0.00016438,2]
[333907198,1722622246964,-500.0,0.00016438,2]
[333907199,1722622246974,-639.25,0.00016438,2]
[333907200,1722622246983,-170.22757644,0.00016438,2]
[333907201,1722622246993,-218.16376417,0.00016438,2]
[333907202,1722622247013,-281.83623583,0.00016438,2]
[333907203,1722622247025,-731.71,0.00016438,2]
[333907204,1722622247035,-500.0,0.00016438,2]
[333907205,1722622247045,-500.0,0.00016438,2]
[333907206,1722622247055,-500.0,0.00016438,2]
[333907207,1722622247064,-500.0,0.00016438,2]
[333907208,1722622247074,-500.0,0.00016438,2]
[333907209,1722622247083,-500.0,0.00016438,2]
[333907210,1722622247093,-476.57440406,0.00016438,2]
[333907211,1722622247103,-601.2,0.00016438,2]
[333907212,1722622247112,-517.11751599,0.00016438,2]
[333907213,1722622247123,-500.0,0.00016438,2]
[333907214,1722622247132,-500.0,0.00016438,2]
[333907215,1722622247142,-500.0,0.00016438,2]
[333907216,1722622247152,-1374.94,0.00016438,2]
[333907217,1722622247162,-1428.61,0.00016438,2]
[333907218,1722622247172,-2149.52,0.00016438,2]
[333907219,1722622247182,-915.19,0.00016438,2]
[333907220,1722622247192,-500.0,0.00016438,2]
[333907221,1722622247201,-500.0,0.00016438,2]
[333907222,1722622247211,-500.0,0.00016438,2]
[333907223,1722622247221,-1009.33,0.00016438,2]
[333907224,1722622247231,-2414.35,0.00016438,2]
[333907225,1722622247240,-500.0,0.00016438,2]
[333907226,1722622247250,-500.0,0.00016438,2]
[333907227,1722622247267,-837.23,0.00016438,2]
[333907228,1722622247276,-1049.11,0.00016438,2]
[333907229,1722622247286,-873.9,0.00016438,2]
[333907230,1722622247296,-1962.39,0.00016438,2]
[333907231,1722622247306,-500.0,0.00016438,2]
[333907232,1722622247316,-500.0,0.00016438,2]
[333907233,1722622247325,-500.0,0.00016438,2]
[333907234,1722622247335,-1359.76,0.00016438,2]
[333907235,1722622247345,-500.0,0.00016438,2]
[333907236,1722622247355,-500.0,0.00016438,2]
[333907237,1722622247364,-500.0,0.00016438,2]
[333907238,1722622247374,-500.0,0.00016438,2]
[333907239,1722622247383,-500.0,0.00016438,2]
[333907240,1722622247393,-541.56,0.00016438,2]
[333907241,1722622247403,-500.0,0.00016438,2]
[333907242,1722622247413,-1309.78,0.00016438,2]
[333907243,1722622247423,-500.0,0.00016438,2]
[333907244,1722622247432,-500.0,0.00016438,2]
[333907245,1722622247443,-531.79,0.00016438,2]
[333907246,1722622247453,-500.0,0.00016438,2]
[333907247,1722622247463,-517.92,0.00016438,2]
[333907248,1722622247472,-500.0,0.00016438,2]
[333907249,1722622247482,-500.0,0.00016438,2]
[333907250,1722622247492,-1208.77,0.00016438,2]
[333907251,1722622247502,-500.0,0.00016438,2]
[333907252,1722622247518,-500.0,0.00016438,2]
[333907253,1722622247529,-500.0,0.00016438,2]
[333907254,1722622247542,-1154.98,0.00016438,2]
[333907255,1722622247552,-500.0,0.00016438,2]
[333907256,1722622247561,-546.99,0.00016438,2]
[333907257,1722622247575,-2284.51,0.00016438,2]
[333907258,1722622247584,-500.0,0.00016438,2]
[333907259,1722622247593,-851.84,0.00016438,2]
[333907260,1722622247603,-500.0,0.00016438,2]
[333907261,1722622247615,-500.0,0.00016438,2]
[333907262,1722622247625,-500.0,0.00016438,2]
[333907263,1722622247635,-500.0,0.00016438,2]
[333907264,1722622247645,-500.0,0.00016438,2]
[333907265,1722622247654,-500.0,0.00016438,2]
[333907266,1722622247664,-327.5303345,0.00016438,2]
[333907267,1722622247673,-500.0,0.00016438,2]
[333907268,1722622247683,-500.0,0.00016438,2]
[333907269,1722622247692,-2586.07,0.00016438,2]
[333907270,1722622247702,-943.53,0.00016438,2]
[333907271,1722622247711,-1416.18,0.00016438,2]
[333907272,1722622247721,-634.45907493,0.00016438,2]
[333907273,1722622247730,-500.0,0.00016438,2]
[333907274,1722622247740,-1309.47,0.00016438,2]
[333907275,1722622247749,-989.82,0.00016438,2]
[333907276,1722622247765,-843.28,0.00016438,2]
[333907277,1722622247775,-297.6,0.00016438,2]
[333907278,1722622247784,-968.23,0.00016438,2]
[333907279,1722622247794,-940.56,0.00016438,2]
[333907280,1722622247803,-1950.33,0.00016438,2]
[333907281,1722622247813,-519.4,0.00016438,2]
[333907282,1722622247823,-500.0,0.00016438,2]
[333907283,1722622247832,-500.0,0.00016438,2]
[333907284,1722622247842,-500.0,0.00016438,2]
[333907285,1722622247851,-703.34,0.00016438,2]
[333907286,1722622247860,-500.0,0.00016438,2]
[333907287,1722622247870,-1634.07,0.00016438,2]
[333907288,1722622247879,-500.0,0.00016438,2]
[333907289,1722622247889,-1119.54,0.00016438,2]
[333907290,1722622247899,-1365.62,0.00016438,2]
[333907291,1722622247908,-500.0,0.00016438,2]
[333907292,1722622247917,-500.0,0.00016438,2]
[333907293,1722622247926,-500.0,0.00016438,2]
[333907294,1722622247936,-500.0,0.00016438,2]
[333907295,1722622247945,-812.65,0.00016438,2]
[333907296,1722622247954,-500.0,0.00016438,2]
[333907297,1722622247964,-3620.17,0.00016438,2]
[333907298,1722622247973,-626.95,0.00016438,2]
[333907299,1722622247983,-500.0,0.00016438,2]
[333907300,1722622247992,-500.0,0.00016438,2]
[333907301,1722622248001,-2331.37,0.00016438,2]
[333907302,1722622248018,-500.0,0.00016438,2]
[333907303,1722622248028,-500.0,0.00016438,2]
[333907304,1722622248037,-1588.98,0.00016438,2]
[333907305,1722622248048,-1986.42,0.00016438,2]
[333907306,1722622248058,-500.0,0.00016438,2]
[333907307,1722622248068,-1814.14,0.00016438,2]
[333907308,1722622248077,-1754.69,0.00016438,2]
[333907309,1722622248088,-500.0,0.00016438,2]
[333907310,1722622248098,-2634.97,0.00016438,2]
[333907311,1722622248108,-2660.94,0.00016438,2]
[333907312,1722622248118,-500.0,0.00016438,2]
[333907313,1722622248127,-500.0,0.00016438,2]
[333907314,1722622248137,-500.0,0.00016438,2]
[333907315,1722622248148,-500.0,0.00016438,2]
[333907316,1722622248157,-500.0,0.00016438,2]
[333907317,1722622248167,-500.0,0.00016438,2]
[333907318,1722622248177,-673.81,0.00016438,2]
[333907319,1722622248186,-1164.48,0.00016438,2]
[333907320,1722622248196,-500.0,0.00016438,2]
[333907321,1722622248205,-824.44,0.00016438,2]
[333907322,1722622248215,-500.0,0.00016438,2]
[333907323,1722622248224,-581.61,0.00016438,2]
[333907324,1722622248233,-1023.27,0.00016438,2]
[333907325,1722622248242,-2231.89,0.00016438,2]
[333907326,1722622248251,-500.0,0.00016438,2]
[333907327,1722622248266,-546.7468674,0.00016438,2]
[333907328,1722622248275,-500.0,0.00016438,2]
[333907329,1722622248284,-2960.37,0.00016438,2]
[333907330,1722622248294,-921.44,0.00016438,2]
[333907331,1722622248303,-500.0,0.00016438,2]
[333907332,1722622248312,-500.0,0.00016438,2]
[333907333,1722622248322,-500.0,0.00016438,2]
[333907334,1722622248331,-471.57,0.00016438,2]
[333907335,1722622248341,-1235.66,0.00016438,2]
[333907336,1722622248350,-500.0,0.00016438,2]
[333907337,1722622248360,-1947.37,0.00016438,2]
[333907338,1722622248369,-500.0,0.00016438,2]
[333907339,1722622248379,-500.0,0.00016438,2]
[333907340,1722622248388,-500.0,0.00016438,2]
[333907341,1722622248398,-1417.64,0.00016438,2]
[333907342,1722622248408,-509.55,0.00016438,2]
[333907343,1722622248417,-878.35,0.00016438,2]
[333907344,1722622248427,-500.0,0.00016438,2]
[333907345,1722622248436,-4316.57,0.00016438,2]
[333907346,1722622248446,-2827.86,0.00016438,2]
[333907347,1722622248456,-500.0,0.00016438,2]
[333907348,1722622248466,-500.0,0.00016438,2]
[333907349,1722622248475,-500.0,0.00016438,2]
[333907350,1722622248485,-500.0,0.00016438,2]
[333907351,1722622248495,-578.46,0.00016438,2]
[333907352,1722622248505,-1934.31,0.00016438,2]
[333907353,1722622248514,-549.32,0.00016438,2]
[333907354,1722622248524,-500.0,0.00016438,2]
[333907355,1722622248534,-2005.63,0.00016438,2]
[333907356,1722622248546,-500.0,0.00016438,2]
[333907357,1722622248555,-609.28,0.00016438,2]
[333907358,1722622248565,-500.0,0.00016438,2]
[333907359,1722622248574,-3391.55,0.00016438,2]
[333907360,1722622248585,-1109.16,0.00016438,2]
[333907361,1722622248594,-500.0,0.00016438,2]
[333907362,1722622248603,-500.0,0.00016438,2]
[333907363,1722622248613,-500.0,0.00016438,2]
[333907364,1722622248623,-576.69,0.00016438,2]
[333907365,1722622248632,-500.0,0.00016438,2]
[333907366,1722622248642,-500.0,0.00016438,2]
[333907367,1722622248651,-1513.78,0.00016438,2]
[333907368,1722622248661,-1885.51,0.00016438,2]
[333907369,1722622248670,-500.0,0.00016438,2]
[333907370,1722622248679,-2567.02,0.00016438,2]
[333907371,1722622248689,-1246.39,0.00016438,2]
[333907372,1722622248698,-733.4,0.00016438,2]
[333907373,1722622248707,-500.0,0.00016438,2]
[333907374,1722622248717,-1401.75,0.00016438,2]
[333907375,1722622248727,-500.0,0.00016438,2]
[333907376,1722622248736,-500.0,0.00016438,2]
[333907377,1722622248746,-1273.91,0.00016438,2]
[333907378,1722622248758,-500.0,0.00016438,2]
[333907379,1722622248768,-500.0,0.00016438,2]
[333907380,1722622248777,-500.0,0.00016438,2]
[333907381,1722622248787,-806.15,0.00016438,2]
[333907382,1722622248796,-500.0,0.00016438,2]
[333907383,1722622248806,-500.0,0.00016438,2]
[333907384,1722622248817,-500.0,0.00016438,2]
[333907385,1722622248827,-587.19,0.00016438,2]
[333907386,1722622248837,-516.15510552,0.00016438,2]
[333907387,1722622248846,-500.0,0.00016438,2]
[333907388,1722622248856,-500.0,0.00016438,2]
[333907389,1722622248865,-500.0,0.00016438,2]
[333907390,1722622248875,-500.0,0.00016438,2]
[333907391,1722622248884,-2503.65,0.00016438,2]
[333907392,1722622248894,-8542.52377204,0.00016438,2]
[333907393,1722622248904,-1084.35,0.00016438,2]
[333907394,1722622248914,-500.0,0.00016438,2]
[333907395,1722622248924,-1832.56,0.00016438,2]
[333907396,1722622248933,-1476.19,0.00016438,2]
[333907397,1722622248943,-591.43020352,0.00016438,2]
[333907398,1722622248952,-500.0,0.00016438,2]
[333907399,1722622248962,-1118.93,0.00016438,2]
[333907400,1722622248971,-353.84780863,0.00016438,2]
[333907401,1722622248980,-500.0,0.00016438,2]
[333907402,1722622248990,-952.5,0.00016438,2]
[333907403,1722622248999,-1170.51,0.00016438,2]
[333907404,1722622249010,-500.0,0.00016438,2]
[333907405,1722622249020,-1416.72,0.00016438,2]
[333907406,1722622249030,-500.0,0.00016438,2]
[333907407,1722622249040,-260.06358418,0.00016438,2]
[333907408,1722622249049,-500.0,0.00016438,2]
[333907409,1722622249058,-1364.03,0.00016438,2]
[333907410,1722622249068,-500.0,0.00016438,2]
[333907411,1722622249078,-2017.47,0.00016438,2]
[333907412,1722622249088,-1349.21,0.00016438,2]
[333907413,1722622249097,-500.0,0.00016438,2]
[333907414,1722622249107,-904.07,0.00016438,2]
[333907415,1722622249116,-236.23310351,0.00016438,2]
[333907416,1722622249125,-593.76,0.00016438,2]
[333907417,1722622249135,-500.0,0.00016438,2]
[333907418,1722622249144,-1026.17,0.00016438,2]
[333907419,1722622249154,-700.8,0.00016438,2]
[333907420,1722622249163,-500.0,0.00016438,2]
[333907421,1722622249172,-712.84,0.00016438,2]
[333907422,1722622249182,-500.0,0.00016438,2]
[333907423,1722622249191,-500.0,0.00016438,2]
[333907424,1722622249200,-362.35874428,0.00016438,2]
[333907425,1722622249210,-1939.03,0.00016438,2]
[333907426,1722622249220,-861.4,0.00016438,2]
[333907427,1722622249229,-777.88,0.00016438,2]
[333907428,1722622249239,-723.48,0.00016438,2]
[333907429,1722622249248,-2170.15,0.00016438,2]
[333907430,1722622249258,-500.0,0.00016438,2]
[333907431,1722622249269,-510.4,0.00016438,2]
[333907432,1722622249278,-500.0,0.00016438,2]
[333907433,1722622249288,-1438.38,0.00016438,2]
[333907434,1722622249297,-721.78,0.00016438,2]
[333907435,1722622249307,-1248.85,0.00016438,2]
[333907436,1722622249316,-500.0,0.00016438,2]
[333907437,1722622249325,-993.23,0.00016438,2]
[333907438,1722622249334,-1304.8,0.00016438,2]
[333907439,1722622249344,-991.23,0.00016438,2]
[333907440,1722622249353,-500.0,0.00016438,2]
[333907441,1722622249363,-500.0,0.00016438,2]
[333907442,1722622249372,-884.97,0.00016438,2]
[333907443,1722622249381,-1787.48,0.00016438,2]
[333907444,1722622249391,-500.0,0.00016438,2]
[333907445,1722622249400,-500.0,0.00016438,2]
[333907446,1722622249409,-1075.24,0.00016438,2]
[333907447,1722622249419,-833.05,0.00016438,2]
[333907448,1722622249430,-500.0,0.00016438,2]
[333907449,1722622249439,-2091.56,0.00016438,2]
[333907450,1722622249449,-500.0,0.00016438,2]
[333907451,1722622249459,-2774.77,0.00016438,2]
[333907452,1722622249468,-668.05,0.00016438,2]
[333907453,1722622249478,-1551.92,0.00016438,2]
[333907454,1722622249488,-1997.3,0.00016438,2]
[333907455,1722622249497,-1869.83,0.00016438,2]
[333907456,1722622249509,-500.0,0.00016438,2]
[333907457,1722622249519,-767.44,0.00016438,2]
[333907458,1722622249528,-500.0,0.00016438,2]
[333907459,1722622249542,-500.0,0.00016438,2]
[333907460,1722622249552,-500.0,0.00016438,2]
[333907461,1722622249562,-500.0,0.00016438,2]
[333907462,1722622249571,-500.0,0.00016438,2]
[333907463,1722622249582,-2211.17,0.00016438,2]
[333907464,1722622249591,-500.0,0.00016438,2]
[333907465,1722622249601,-286.22039809,0.00016438,2]
[333907466,1722622249611,-500.0,0.00016438,2]
[333907467,1722622249623,-500.0,0.00016438,2]
[333907468,1722622249632,-500.0,0.00016438,2]
[333907469,1722622249642,-500.0,0.00016438,2]
[333907470,1722622249651,-500.0,0.00016438,2]
[333907471,1722622249660,-500.0,0.00016438,2]
[333907472,1722622249670,-3050.47,0.00016438,2]
[333907473,1722622249679,-713.64,0.00016438,2]
[333907474,1722622249688,-2411.55,0.00016438,2]
[333907475,1722622249698,-1243.37,0.00016438,2]